fUSD/lending_fUSD_20251105
["ID","MTS","AMOUNT","RATE_DAILY","PERIOD"]
[393200204,1762312981040,1675.04,0.00038268,120]
[393200205,1762312981105,1044.1,0.00038268,120]
[393200206,1762312981170,1856.47,0.00038268,120]
[393200207,1762312981286,1675.04,0.00038268,120]
[393200208,1762312981387,1044.1,0.00038268,120]
[393200209,1762312981438,1856.47,0.00038268,120]
[393200210,1762312981530,1675.04,0.00038268,120]
[393200211,1762312981631,1044.1,0.00038268,120]
[393200212,1762312981682,1856.47,0.00038268,120]
[393200213,1762312981767,1675.04,0.00038268,120]
[393200214,1762312981907,1044.1,0.00038268,120]
[393200215,1762312981967,1856.47,0.00038268,120]
[393200216,1762312982028,1675.04,0.00038268,120]
[393200217,1762312982162,1044.1,0.00038268,120]
[393200218,1762312982222,1856.47,0.00038268,120]
[393200219,1762312982289,1675.04,0.00038268,120]
[393200220,1762312982421,1044.1,0.00038268,120]
[393200221,1762312982482,1856.47,0.00038268,120]
[393200222,1762312982554,1675.04,0.00038268,120]
[393200223,1762312982677,500.0,0.00038268,120]
[393200224,1762312982735,1044.1,0.00038268,120]
[393200225,1762312982790,1856.47,0.00038268,120]
[393200226,1762312982849,1675.04,0.00038268,120]
[393200227,1762312982907,519.07890313,0.00038268,120]
[393200228,1762312982973,1044.1,0.00038268,120]
[393200229,1762312983046,1675.04,0.00038268,120]
[393200230,1762312983110,1856.47,0.00038268,120]
[393200231,1762312983182,1044.1,0.00038268,120]
[393200232,1762312983289,1856.47,0.00038268,120]
[393200233,1762312983351,1675.04,0.00038268,120]
[393200234,1762312983425,1044.1,0.00038268,120]
[393200235,1762312983531,1675.04,0.00038268,120]
[393200236,1762312983603,1856.47,0.00038268,120]
[393200237,1762312983681,1044.1,0.00038268,120]
[393200238,1762312983776,1856.47,0.00038268,120]
[393200239,1762312983838,1675.04,0.00038268,120]
[393200240,1762312983929,1044.1,0.00038268,120]
[393200241,1762312984015,1856.47,0.00038268,120]
[393200242,1762312984076,1675.04,0.00038268,120]
[393200243,1762312984166,1044.1,0.00038268,120]
[393200244,1762312984255,1856.47,0.00038268,120]
[393200245,1762312984320,1675.04,0.00038268,120]
[393200246,1762312984408,1044.1,0.00038268,120]
[393200247,1762312984540,1675.04,0.00038268,120]
[393200248,1762312984599,1856.47,0.00038268,120]
[393200249,1762312984664,1044.1,0.00038268,120]
[393200250,1762312984784,1675.04,0.00038268,120]
[393200251,1762312984903,1044.17668677,0.00038268,120]
[393200252,1762312985173,1856.47,0.00038268,120]
[393200253,1762312985253,1675.04,0.00038268,120]
[393200254,1762312985313,1856.47,0.00038268,120]
[393200255,1762312985378,1675.04,0.00038268,120]
[393200256,1762312985438,1856.47,0.00038268,120]
[393200257,1762312985599,1675.04,0.00038268,120]
[393200258,1762312985677,1856.47,0.00038268,120]
[393200259,1762312985858,1675.04,0.00038268,120]
[393200260,1762312985929,1856.47,0.00038268,120]
[393200261,1762312986098,1675.04,0.00038268,120]
[393200262,1762312986166,1856.47,0.00038268,120]
[393200263,1762312986334,1675.04,0.00038268,120]
[393200264,1762312986409,1856.47,0.00038268,120]
[393200265,1762312986581,1675.04,0.00038268,120]
[393200266,1762312986658,1856.47,0.00038268,120]
[393200267,1762312986830,1675.17855353,0.00038268,120]
[393200268,1762312986898,1856.47,0.00038268,120]
[393200269,1762312987184,1856.58558314,0.00038268,120]
[393200270,1762312989001,500.0,0.00038268,120]
[393200271,1762312989234,500.0,0.00038268,120]
[393200272,1762312989388,500.0,0.00038268,120]
[393200273,1762312989474,500.0,0.00038268,120]
[393200274,1762312989698,500.0,0.00038268,120]
[393200275,1762312989783,500.0,0.00038268,120]
[393200276,1762312989937,500.0,0.00038268,120]
[393200277,1762312990311,622.96479442,0.00038268,120]
[393200278,1762312990376,500.0,0.00038268,120]
[393200279,1762312990436,500.0,0.00038268,120]
[393200280,1762312990646,500.0,0.00038268,120]
[393200281,1762312990877,500.0,0.00038268,120]
[393200282,1762312991103,500.0,0.00038268,120]
[393200283,1762312991158,500.0,0.00038268,120]
[393200284,1762312991346,503.64531458,0.00038268,120]
[393200285,1762312991405,500.0,0.00038268,120]
[393200286,1762312991589,500.0,0.00038268,120]
[393200287,1762312991894,500.0,0.00038268,120]
[393200288,1762312992145,500.0,0.00038268,120]
[393200289,1762312992402,500.0,0.00038268,120]
[393200290,1762312992659,251.18755377,0.00038268,120]
[393200291,1762312993261,1042.49,0.00038268,120]
[393200292,1762312993506,1042.49,0.00038268,120]
[393200293,1762312993764,1042.49,0.00038268,120]
[393200294,1762312994019,1042.49,0.00038268,120]
[393200295,1762312994274,1042.49,0.00038268,120]
[393200296,1762312994526,1042.49,0.00038268,120]
[393200297,1762312994761,1042.49,0.00038268,120]
[393200298,1762312994991,1042.49,0.00038268,120]
[393200299,1762312995398,1042.49,0.00038268,120]
[393200300,1762312995489,1042.49,0.00038268,120]
[393200301,1762312995721,1042.49,0.00038268,120]
[393200302,1762312995965,1042.49,0.00038268,120]
[393200303,1762312996233,1042.49,0.00038268,120]
[393200304,1762312996291,500.0,0.00038268,120]
[393200305,1762312996484,1042.49,0.00038268,120]
[393200306,1762312996547,500.0,0.00038268,120]
[393200307,1762312996738,1042.49,0.00038268,120]
[393200308,1762312996794,500.0,0.00038268,120]
[393200309,1762312996973,500.0,0.00038268,120]
[393200310,1762312997031,1042.49,0.00038268,120]
[393200311,1762312997230,500.0,0.00038268,120]
[393200312,1762312997283,1042.49,0.00038268,120]
[393200313,1762312997471,287.89402158,0.00038268,120]
[393200314,1762312997526,1042.49,0.00038268,120]
[393200315,1762312997728,1042.49,0.00038268,120]
[393200316,1762312997978,1042.49,0.00038268,120]
[393200317,1762312998230,1042.49,0.00038268,120]
[393200318,1762312998481,1042.49,0.00038268,120]
[393200319,1762312998720,1042.49,0.00038268,120]
[393200320,1762312998969,1042.71184195,0.00038268,120]
[393200321,1762313001386,1313.82,0.00038268,120]
[393200322,1762313001623,1313.82,0.00038268,120]
[393200323,1762313001861,1313.82,0.00038268,120]
[393200324,1762313002113,1313.82,0.00038268,120]
[393200325,1762313002347,1313.82,0.00038268,120]
[393200326,1762313002636,1313.82,0.00038268,120]
[393200327,1762313002809,500.0,0.00038268,120]
[393200328,1762313002868,1313.82,0.00038268,120]
[393200329,1762313003060,500.0,0.00038268,120]
[393200330,1762313003127,1313.82,0.00038268,120]
[393200331,1762313003310,500.0,0.00038268,120]
[393200332,1762313003374,1313.82,0.00038268,120]
[393200333,1762313003562,500.0,0.00038268,120]
[393200334,1762313003632,1313.82,0.00038268,120]
[393200335,1762313003820,500.0,0.00038268,120]
[393200336,1762313003888,1313.82,0.00038268,120]
[393200337,1762313004060,189.58840696,0.00038268,120]
[393200338,1762313004123,1313.82,0.00038268,120]
[393200339,1762313004351,1313.82,0.00038268,120]
[393200340,1762313004585,1313.82,0.00038268,120]
[393200341,1762313004828,1313.82,0.00038268,120]
[393200342,1762313005063,1313.82,0.00038268,120]
[393200343,1762313005378,1313.82,0.00038268,120]
[393200344,1762313005606,1313.82,0.00038268,120]
[393200345,1762313005843,1313.82,0.00038268,120]
[393200346,1762313006092,1313.82,0.00038268,120]
[393200347,1762313006316,1313.82,0.00038268,120]
[393200348,1762313006572,1313.82,0.00038268,120]
[393200349,1762313006819,1313.82,0.00038268,120]
[393200350,1762313007063,1313.99565625,0.00038268,120]
[393200351,1762313008821,500.0,0.00038268,120]
[393200352,1762313009079,603.68787979,0.00038268,120]
[393200353,1762313010808,500.0,0.00038268,120]
[393200355,1762313011056,500.0,0.00038268,120]
[393200356,1762313011321,587.9644629,0.00038268,120]
[393200357,1762313012305,551.65,0.00038268,120]
[393200358,1762313012555,551.65,0.00038268,120]
[393200359,1762313012795,551.65,0.00038268,120]
[393200360,1762313013030,551.65,0.00038268,120]
[393200361,1762313013122,500.0,0.00038268,120]
[393200362,1762313013274,551.65,0.00038268,120]
[393200363,1762313013396,500.0,0.00038268,120]
[393200364,1762313013525,551.65,0.00038268,120]
[393200365,1762313013651,500.0,0.00038268,120]
[393200366,1762313013767,551.65,0.00038268,120]
[393200367,1762313013934,500.0,0.00038268,120]
[393200368,1762313014006,551.65,0.00038268,120]
[393200369,1762313014183,517.69253594,0.00038268,120]
[393200370,1762313014402,551.65,0.00038268,120]
[393200371,1762313014661,551.65,0.00038268,120]
[393200372,1762313014912,551.65,0.00038268,120]
[393200373,1762313015141,551.65,0.00038268,120]
[393200374,1762313015290,394.68470446,0.00038268,120]
[393200375,1762313015376,551.65,0.00038268,120]
[393200376,1762313015869,551.65,0.00038268,120]
[393200377,1762313015937,551.65,0.00038268,120]
[393200378,1762313015998,500.0,0.00038268,120]
[393200379,1762313016154,551.65,0.00038268,120]
[393200380,1762313016227,508.62439846,0.00038268,120]
[393200381,1762313016398,551.65,0.00038268,120]
[393200382,1762313016645,551.65,0.00038268,120]
[393200383,1762313016890,551.65,0.00038268,120]
[393200384,1762313017131,551.65,0.00038268,120]
[393200385,1762313017376,551.65,0.00038268,120]
[393200386,1762313017643,551.65,0.00038268,120]
[393200387,1762313017873,551.65,0.00038268,120]
[393200388,1762313018123,551.67629291,0.00038268,120]
[393200389,1762313018747,800.74,0.00038268,120]
[393200390,1762313019012,800.74,0.00038268,120]
[393200391,1762313019249,800.74,0.00038268,120]
[393200392,1762313019497,800.74,0.00038268,120]
[393200393,1762313019731,800.74,0.00038268,120]
[393200394,1762313019964,800.74,0.00038268,120]
[393200395,1762313020211,800.74,0.00038268,120]
[393200396,1762313020438,800.74,0.00038268,120]
[393200397,1762313020683,800.74,0.00038268,120]
[393200398,1762313020951,800.74,0.00038268,120]
[393200399,1762313021193,800.74,0.00038268,120]
[393200400,1762313021436,800.74,0.00038268,120]
[393200401,1762313021613,500.0,0.00038268,120]
[393200402,1762313021677,800.74,0.00038268,120]
[393200403,1762313021858,500.0,0.00038268,120]
[393200404,1762313021916,800.74,0.00038268,120]
[393200405,1762313022094,500.0,0.00038268,120]
[393200406,1762313022172,800.74,0.00038268,120]
[393200407,1762313022341,500.0,0.00038268,120]
[393200408,1762313022425,800.74,0.00038268,120]
[393200409,1762313022702,800.74,0.00038268,120]
[393200410,1762313022763,500.0,0.00038268,120]
[393200411,1762313022966,800.74,0.00038268,120]
[393200412,1762313023028,209.82583275,0.00038268,120]
[393200413,1762313023199,800.74,0.00038268,120]
[393200414,1762313023437,800.74,0.00038268,120]
[393200415,1762313023544,150.0,0.00023769,120]
[393200416,1762313023692,800.74,0.00038268,120]
[393200417,1762313023954,800.74,0.00038268,120]
[393200418,1762313024200,800.74,0.00038268,120]
[393200419,1762313024462,800.74534235,0.00038268,120]
[393200420,1762313027125,500.0,0.00038268,120]
[393200421,1762313027367,602.88054643,0.00038268,120]
[393200422,1762313032365,500.0,0.00038268,120]
[393200423,1762313032606,500.0,0.00038268,120]
[393200424,1762313032848,500.0,0.00038268,120]
[393200425,1762313033124,500.0,0.00038268,120]
[393200426,1762313033424,500.0,0.00038268,120]
[393200427,1762313033675,500.0,0.00038268,120]
[393200428,1762313033920,500.0,0.00038268,120]
[393200429,1762313034158,520.02238958,0.00038268,120]
[393200430,1762313034217,500.0,0.00038268,120]
[393200431,1762313034661,500.0,0.00038268,120]
[393200432,1762313034904,500.0,0.00038268,120]
[393200433,1762313035175,500.0,0.00038268,120]
[393200434,1762313035450,500.0,0.00038268,120]
[393200435,1762313035686,500.0,0.00038268,120]
[393200436,1762313035930,500.0,0.00038268,120]
[393200437,1762313036337,500.0,0.00038268,120]
[393200438,1762313036616,500.0,0.00038268,120]
[393200439,1762313036869,500.0,0.00038268,120]
[393200440,1762313037135,500.0,0.00038268,120]
[393200441,1762313037391,500.0,0.00038268,120]
[393200442,1762313037654,289.54933589,0.00038268,120]
[393200443,1762313044977,500.0,0.00038268,120]
[393200444,1762313045275,500.0,0.00038268,120]
[393200445,1762313045554,549.20959663,0.00038268,120]
[393200446,1762313049099,565.37332034,0.00038268,120]
[393200447,1762313050551,500.0,0.00038268,120]
[393200448,1762313050795,500.0,0.00038268,120]
[393200449,1762313051034,500.0,0.00038268,120]
[393200450,1762313051277,500.0,0.00038268,120]
[393200451,1762313051514,500.0,0.00038268,120]
[393200452,1762313051757,500.0,0.00038268,120]
[393200453,1762313051999,352.07866362,0.00038268,120]
[393200454,1762313052654,500.0,0.00038268,120]
[393200455,1762313052920,500.0,0.00038268,120]
[393200456,1762313053160,500.0,0.00038268,120]
[393200457,1762313053397,500.0,0.00038268,120]
[393200458,1762313053650,500.0,0.00038268,120]
[393200459,1762313053940,500.0,0.00038268,120]
[393200460,1762313054169,500.0,0.00038268,120]
[393200461,1762313054413,500.0,0.00038268,120]
[393200462,1762313054986,500.0,0.00038268,120]
[393200463,1762313055239,500.0,0.00038268,120]
[393200464,1762313055490,500.0,0.00038268,120]
[393200465,1762313055732,500.0,0.00038268,120]
[393200466,1762313055974,500.0,0.00038268,120]
[393200467,1762313056216,500.0,0.00038268,120]
[393200468,1762313056480,566.01778073,0.00038268,120]
[393200470,1762313063135,512.24182373,0.00038268,120]
[393200471,1762313064937,507.5158921,0.00038268,120]
[393200472,1762313067051,500.0,0.00038268,120]
[393200473,1762313067120,567.82115869,0.00038268,120]
[393200474,1762313068448,500.0,0.00038268,120]
[393200475,1762313068698,500.0,0.00038268,120]
[393200476,1762313068971,500.0,0.00038268,120]
[393200477,1762313069210,532.19835868,0.00038268,120]
[393200478,1762313070814,500.0,0.00038268,120]
[393200479,1762313071352,500.0,0.00038268,120]
[393200480,1762313071414,519.00731747,0.00038268,120]
[393200481,1762313076279,500.0,0.00038268,120]
[393200482,1762313076546,500.0,0.00038268,120]
[393200483,1762313076777,500.0,0.00038268,120]
[393200484,1762313077372,500.0,0.00038268,120]
[393200485,1762313077619,500.0,0.00038268,120]
[393200486,1762313077674,504.35852725,0.00038268,120]
[393200487,1762313077854,500.0,0.00038268,120]
[393200488,1762313078125,500.0,0.00038268,120]
[393200489,1762313078342,500.0,0.00038268,120]
[393200490,1762313078626,500.0,0.00038268,120]
[393200491,1762313078880,256.17219154,0.00038268,120]
[393200492,1762313079474,500.0,0.00038268,120]
[393200493,1762313079733,500.0,0.00038268,120]
[393200494,1762313079974,503.23524696,0.00038268,120]
[393200495,1762313082086,1503.27,0.00038268,120]
[393200496,1762313082332,1503.27,0.00038268,120]
[393200497,1762313082552,1503.27,0.00038268,120]
[393200498,1762313082815,1503.27,0.00038268,120]
[393200499,1762313083047,1503.27,0.00038268,120]
[393200500,1762313083286,1503.27,0.00038268,120]
[393200501,1762313083531,1503.27,0.00038268,120]
[393200502,1762313084142,1503.27,0.00038268,120]
[393200503,1762313084379,1503.27,0.00038268,120]
[393200504,1762313084617,1503.27,0.00038268,120]
[393200505,1762313084850,1503.27,0.00038268,120]
[393200506,1762313085092,1503.27,0.00038268,120]
[393200507,1762313085361,1503.27,0.00038268,120]
[393200508,1762313085625,1503.27,0.00038268,120]
[393200509,1762313085874,1503.27,0.00038268,120]
[393200510,1762313086294,1503.27,0.00038268,120]
[393200511,1762313086560,1503.27,0.00038268,120]
[393200512,1762313086797,1503.27,0.00038268,120]
[393200513,1762313087052,1503.27,0.00038268,120]
[393200514,1762313087487,1503.27,0.00038268,120]
[393200515,1762313087576,1503.27,0.00038268,120]
[393200516,1762313087814,1503.27,0.00038268,120]
[393200517,1762313088060,1503.27,0.00038268,120]
[393200518,1762313088328,1503.47548293,0.00038268,120]
[393200519,1762313090361,629.48028554,0.00038268,120]
[393200520,1762313092251,500.0,0.00038268,120]
[393200521,1762313092509,500.0,0.00038268,120]
[393200522,1762313093148,515.02832441,0.00038268,120]
[393200524,1762313135324,2839.08986028,9e-05,2]
[393200526,1762313160668,10000.01,8e-05,2]
[393200527,1762313160691,293.42292931,8e-05,2]
[393200528,1762313164391,9342.58412226,0.00011,2]
[393200532,1762313213253,10000.01,0.000162,5]
[393200534,1762313220325,-3479.62,0.000162,5]
[393200535,1762313220420,-10000.01,0.000162,5]
[393200536,1762313220565,-10000.01,0.000162,5]
[393200537,1762313223252,-10000.01,0.000162,5]
[393200538,1762313223387,-10000.01,0.000162,5]
[393200539,1762313223967,-506.32012371,0.000162,5]
[393200540,1762313225482,-189.94426754,0.000162,5]
[393200541,1762313228955,-237.21898313,0.000162,5]
[393200542,1762313229400,-392.24609613,0.000162,5]
[393200543,1762313229696,205.0,9.8e-05,2]
[393200544,1762313233130,5298.1550041,0.0001305,2]
[393200545,1762313233541,257.65521224,0.000101,2]
[393200547,1762313269522,17524.90308815,0.00015,2]
[393200548,1762313271341,-496.99827417,0.00015,2]
[393200549,1762313273375,632.67,0.0003827,120]
[393200550,1762313273609,632.67,0.0003827,120]
[393200551,1762313273874,223.79550978,0.0003827,120]
[393200552,1762313274444,-332.5342894,0.00015,2]
[393200553,1762313285687,-300.0,0.00015,2]
[393200554,1762313286634,565.84422964,0.000135,2]
[393200555,1762313289265,495.67567222,0.00030137,120]
[393200556,1762313301444,222.02410141,0.0001,2]
[393200569,1762313318949,152.00864126,0.0003,120]
[393200571,1762313336994,1049.48464286,0.000301,120]
[393200573,1762313404315,158.0,0.000301,120]
[393200584,1762313431551,-182.29304356,0.00014873,2]
[393200586,1762313431560,-195.0,0.0001488,2]
[393200588,1762313431569,-300.0,0.00014886,2]
[393200590,1762313431578,-632.98589566,0.00014886,2]
[393200593,1762313431660,-944.6866011,0.00014886,2]
[393200594,1762313431670,-250.0,0.00014886,2]
[393200595,1762313431679,-169.32781449,0.000149,2]
[393200596,1762313431691,-182.29304356,0.000149,2]
[393200597,1762313431701,-195.0,0.00014915,2]
[393200598,1762313431710,-353.12598646,0.00014933,2]
[393200599,1762313431719,-1200.0,0.00014958,2]
[393200600,1762313431728,-300.0,0.00014958,2]
[393200601,1762313431737,-300.0,0.00014958,2]
[393200602,1762313431746,-17044.0,0.00014959,2]
[393200603,1762313431757,-500.0,0.00014973,2]
[393200604,1762313431766,-511.3606377,0.00014973,2]
[393200605,1762313431776,-500.0,0.00014973,2]
[393200606,1762313431786,-500.0,0.00014973,2]
[393200607,1762313431796,-500.0,0.00014973,2]
[393200608,1762313431805,-500.0,0.00014973,2]
[393200609,1762313431815,-1576.58189279,0.0001499,2]
[393200610,1762313431824,-150.0,0.00014998,2]
[393200611,1762313431833,-500.0,0.00014999,2]
[393200612,1762313431842,-329.2670358,0.00014999,2]
[393200613,1762313431852,-223.94658341,0.00014999,2]
[393200614,1762313431861,-500.0,0.00014999,2]
[393200615,1762313431871,-334.20602164,0.00014999,2]
[393200616,1762313431881,-646.54325847,0.00014999,2]
[393200617,1762313431891,-500.0,0.00014999,2]
[393200618,1762313431905,-500.0,0.00014999,2]
[393200619,1762313431915,-500.0,0.00014999,2]
[393200620,1762313431924,-500.0,0.00014999,2]
[393200621,1762313431933,-500.0,0.00014999,2]
[393200622,1762313431944,-376.98222739,0.00014999,2]
[393200623,1762313431954,-500.0,0.00014999,2]
[393200624,1762313431965,-500.0,0.00014999,2]
[393200625,1762313431974,-500.0,0.00014999,2]
[393200626,1762313431983,-500.0,0.00014999,2]
[393200627,1762313431993,-500.0,0.00014999,2]
[393200628,1762313432002,-500.0,0.00014999,2]
[393200629,1762313432011,-500.0,0.00014999,2]
[393200630,1762313432021,-500.0,0.00014999,2]
[393200631,1762313432032,-500.0,0.00014999,2]
[393200632,1762313432042,-500.0,0.00014999,2]
[393200633,1762313432051,-500.0,0.00014999,2]
[393200634,1762313432060,-500.0,0.00014999,2]
[393200635,1762313432070,-500.0,0.00014999,2]
[393200636,1762313432079,-500.0,0.00014999,2]
[393200637,1762313432089,-500.0,0.00014999,2]
[393200638,1762313432098,-500.0,0.00014999,2]
[393200639,1762313432107,-500.0,0.00014999,2]
[393200640,1762313432116,-249.63544258,0.00014999,2]
[393200641,1762313432125,-500.0,0.00014999,2]
[393200642,1762313432135,-500.0,0.00014999,2]
[393200643,1762313432144,-500.0,0.00014999,2]
[393200644,1762313432154,-500.0,0.00014999,2]
[393200645,1762313432164,-500.0,0.00014999,2]
[393200646,1762313432174,-500.0,0.00014999,2]
[393200647,1762313432183,-575.76103037,0.00014999,2]
[393200648,1762313432193,-173329.59671975,0.00015,2]
[393200649,1762313432205,-168845.78949906,0.00015,2]
[393200650,1762313432216,-5795.56269484,0.00015,2]
[393200651,1762313432309,158.0,0.000301,120]
[393200652,1762313432324,-407.12068079,0.00015,2]
[393200653,1762313432336,-1736.55047373,0.00015,2]
[393200654,1762313432347,-7973.57178352,0.00015,2]
[393200656,1762313437542,-500.0,0.00014999,2]
[393200657,1762313437552,-500.0,0.00014999,2]
[393200658,1762313437562,-500.0,0.00014999,2]
[393200659,1762313437571,-500.0,0.00014999,2]
[393200660,1762313437581,-500.0,0.00014999,2]
[393200661,1762313437591,-500.0,0.00014999,2]
[393200662,1762313437601,-2515133.91562506,0.00015,2]
[393200663,1762313437614,-1000.39732855,0.00015,2]
[393200664,1762313437624,-6212.40612113,0.00015,3]
[393200665,1762313437633,-31226.91657345,0.00015,2]
[393200666,1762313437643,-502.93416006,0.000154,2]
[393200667,1762313437654,-1000.0,0.00015521,2]
[393200668,1762313437663,-1000.0,0.00015521,2]
[393200669,1762313437673,-795.47901701,0.00015521,2]
[393200670,1762313437684,-1000.0,0.00015521,2]
[393200671,1762313437694,-1500.0,0.00015711,2]
[393200672,1762313437714,-2215.77539282,0.00015807,2]
[393200673,1762313437724,-1500.0,0.00016068,2]
[393200674,1762313437734,-1500.0,0.00016068,2]
[393200675,1762313437743,-1500.0,0.00016068,2]
[393200676,1762313437753,-255.0,0.00016123,2]
[393200677,1762313437763,-200.0,0.0001634,2]
[393200678,1762313437773,-300.0,0.0001636,2]
[393200679,1762313437782,-2500.0,0.0001636,2]
[393200680,1762313437793,-250.0,0.0001636,2]
[393200681,1762313437802,-195.0,0.0001636,2]
[393200682,1762313437812,-302.60422307,0.0001636,2]
[393200683,1762313437821,-420.0,0.00016371,2]
[393200684,1762313437831,-420.0,0.00016371,2]
[393200685,1762313437840,-500.0,0.00016438,2]
[393200686,1762313437850,-500.0,0.00016438,2]
[393200687,1762313437859,-500.0,0.00016438,2]
[393200689,1762313437869,-500.0,0.00016438,2]
[393200691,1762313437878,-433.48121794,0.00016438,2]
[393200693,1762313437887,-500.0,0.00016438,2]
[393200695,1762313437897,-500.0,0.00016438,2]
[393200696,1762313437906,-307.31908816,0.00016438,2]
[393200697,1762313437915,-163.31,0.0001644,2]
[393200698,1762313437926,-163.31,0.0001644,2]
[393200699,1762313437935,-163.31,0.0001644,2]
[393200700,1762313437944,-163.31,0.0001644,2]
[393200701,1762313437953,-163.31,0.0001644,2]
[393200702,1762313437963,-163.31,0.0001644,2]
[393200703,1762313437972,-1680.0,0.00016454,2]
[393200704,1762313437981,-1061.76628903,0.00016616,2]
[393200705,1762313437991,-1015.06774849,0.00016616,2]
[393200706,1762313438000,-2000.0,0.00016616,2]
[393200707,1762313438011,-1000.0,0.00016711,2]
[393200708,1762313438021,-1000.0,0.00016711,2]
[393200710,1762313438032,-0.21488327,0.00016712,2]
[393200712,1762313438043,-2000.0,0.00017164,2]
[393200713,1762313438054,-433.0,0.00017338,2]
[393200714,1762313438064,-587.0,0.00017918,2]
[393200715,1762313438074,-587.0,0.00017918,2]
[393200716,1762313438085,-1200.0,0.00017972,2]
[393200717,1762313438095,-563.44520848,0.00017973,2]
[393200718,1762313438104,-500.56206736,0.00017973,2]
[393200719,1762313438114,-500.0,0.00017973,2]
[393200720,1762313438124,-501.57961135,0.00017973,2]
[393200721,1762313438133,-596.16043482,0.00017973,2]
[393200722,1762313438142,-500.0,0.00017973,2]
[393200723,1762313438152,-157.45,0.0001799,3]
[393200724,1762313438161,-341732.87343395,0.00018,2]
[393200725,1762313438171,-2351.0,0.00018099,2]
[393200726,1762313438182,-8304.3199024,0.00018284,2]
[393200727,1762313438191,-5964.63,0.00018476,2]
[393200728,1762313438201,-736.0,0.00018628,2]
[393200729,1762313438211,-500.0,0.00018633,2]
[393200730,1762313438221,-500.0,0.00018667,2]
[393200731,1762313438231,-510.55136191,0.00018667,2]
[393200732,1762313438242,-500.0,0.00018667,2]
[393200733,1762313438252,-500.0,0.00018667,2]
[393200734,1762313438262,-500.0,0.00018667,2]
[393200735,1762313438272,-500.0,0.00018667,2]
[393200736,1762313438283,-500.0,0.00018667,2]
[393200737,1762313438296,-500.0,0.00018667,2]
[393200738,1762313438307,-500.0,0.00018667,2]
[393200739,1762313438317,-169.32781447,0.00018778,2]
[393200740,1762313438327,-150.4,0.000188,2]
[393200741,1762313438337,-150.4,0.000188,2]
[393200742,1762313438347,-150.4,0.000188,2]
[393200743,1762313438356,-150.4,0.000188,2]
[393200744,1762313438366,-150.4,0.000188,2]
[393200745,1762313438375,-150.4,0.000188,2]
[393200746,1762313438386,-150.4,0.000188,2]
[393200747,1762313438396,-150.4,0.000188,2]
[393200748,1762313438406,-150.4,0.000188,2]